fUST/lending_fUST_20240902
["ID","MTS","AMOUNT","RATE_DAILY","PERIOD"]
[336915335,1725241846700,-2409.53101312,0.00025743,3]
[336915337,1725241846710,-9638.12405248,0.00025743,3]
[336915339,1725241846720,-1173.41,0.00025752,2]
[336915341,1725241846730,-563.6,0.00025752,2]
[336915342,1725241846742,-8441.89,0.00025752,2]
[336915344,1725241846753,-1703.08,0.00025752,2]
[336915346,1725241846762,-1974.8,0.00025752,2]
[336915348,1725241846772,-3227.67,0.00025752,2]
[336915350,1725241846784,-1206.98,0.00025752,2]
[336915351,1725241846793,-1295.95,0.00025752,2]
[336915353,1725241846803,-525.12,0.00025752,2]
[336915355,1725241846813,-500.0,0.00025753,2]
[336915357,1725241846825,-500.0,0.00025753,2]
[336915359,1725241846835,-589.49,0.00025753,2]
[336915361,1725241846846,-500.0,0.00025753,2]
[336915363,1725241846855,-882.48,0.00025753,2]
[336915364,1725241846865,-500.0,0.00025753,2]
[336915366,1725241846875,-500.0,0.00025753,2]
[336915368,1725241846885,-500.0,0.00025753,2]
[336915369,1725241846895,-151.0,0.00025753,7]
[336915371,1725241846905,-500.0,0.00025753,2]
[336915373,1725241846915,-505.12970038,0.00025753,2]
[336915374,1725241846925,-500.0,0.00025753,2]
[336915376,1725241846935,-505.89865294,0.00025753,2]
[336915378,1725241846946,-692.14,0.00025753,2]
[336915380,1725241846956,-500.0,0.00025753,2]
[336915382,1725241846965,-500.0,0.00025753,2]
[336915383,1725241846975,-500.0,0.00025753,2]
[336915385,1725241846985,-500.0,0.00025753,2]
[336915387,1725241846995,-1353.53,0.00025753,2]
[336915389,1725241847005,-690.61,0.00025753,2]
[336915390,1725241847015,-695.97,0.00025753,2]
[336915392,1725241847025,-500.0,0.00025753,2]
[336915394,1725241847035,-505.84427358,0.00025753,2]
[336915396,1725241847045,-500.0,0.00025753,2]
[336915397,1725241847055,-500.0,0.00025753,2]
[336915399,1725241847065,-502.47167547,0.00025753,2]
[336915401,1725241847075,-591.29,0.00025753,2]
[336915403,1725241847086,-519.39,0.00025753,2]
[336915405,1725241847096,-500.0,0.00025753,2]
[336915406,1725241847105,-500.0,0.00025753,2]
[336915408,1725241847116,-500.0,0.00025753,2]
[336915410,1725241847126,-500.0,0.00025753,2]
[336915412,1725241847136,-557.59,0.00025753,2]
[336915414,1725241847147,-499.76621326,0.00025753,2]
[336915416,1725241847157,-463.65981677,0.00025753,2]
[336915417,1725241847168,-633.77385658,0.00025753,4]
[336915419,1725241847177,-500.0,0.00025753,2]
[336915421,1725241847188,-500.0,0.00025753,2]
[336915423,1725241847198,-512.84042606,0.00025753,2]
[336915424,1725241847208,-500.0,0.00025753,2]
[336915426,1725241847217,-500.0,0.00025753,2]
[336915428,1725241847227,-500.0,0.00025753,2]
[336915430,1725241847237,-500.0,0.00025753,2]
[336915432,1725241847246,-500.0,0.00025753,2]
[336915433,1725241847256,-506.73489142,0.00025753,2]
[336915435,1725241847266,-1056.18,0.00025753,2]
[336915437,1725241847276,-588.42,0.00025753,2]
[336915439,1725241847286,-500.0,0.00025753,2]
[336915441,1725241847296,-500.0,0.00025753,2]
[336915442,1725241847305,-1495.45,0.00025753,2]
[336915444,1725241847319,-1096.0,0.00025753,2]
[336915446,1725241847329,-500.0,0.00025753,2]
[336915448,1725241847338,-814.05,0.00025753,2]
[336915450,1725241847348,-500.0,0.00025753,2]
[336915452,1725241847358,-853.48,0.00025753,2]
[336915453,1725241847368,-1261.97,0.00025753,2]
[336915455,1725241847378,-500.0,0.00025753,2]
[336915457,1725241847388,-1312.91,0.00025753,2]
[336915459,1725241847399,-500.0,0.00025753,2]
[336915461,1725241847408,-1049.4,0.00025753,2]
[336915462,1725241847418,-751.59,0.00025753,2]
[336915464,1725241847428,-888.46,0.00025753,2]
[336915466,1725241847439,-956.79,0.00025753,2]
[336915468,1725241847448,-500.0,0.00025753,2]
[336915470,1725241847458,-500.0,0.00025753,2]
[336915471,1725241847468,-500.0,0.00025753,2]
[336915473,1725241847478,-567.63,0.00025753,2]
[336915475,1725241847488,-500.0,0.00025753,2]
[336915476,1725241847498,-506.12013036,0.00025753,2]
[336915478,1725241847508,-358.59328275,0.00025753,2]
[336915480,1725241847518,-500.0,0.00025753,2]
[336915482,1725241847529,-500.0,0.00025753,2]
[336915484,1725241847539,-500.0,0.00025753,2]
[336915485,1725241847549,-500.0,0.00025753,2]
[336915487,1725241847559,-500.0,0.00025753,2]
[336915489,1725241847568,-4058.39,0.00025753,2]
[336915490,1725241847578,-534.39391697,0.00025753,2]
[336915492,1725241847589,-500.0,0.00025753,2]
[336915494,1725241847598,-734.36,0.00025753,2]
[336915496,1725241847608,-507.61811917,0.00025753,2]
[336915498,1725241847618,-500.0,0.00025753,2]
[336915499,1725241847628,-500.0,0.00025753,2]
[336915501,1725241847639,-500.0,0.00025753,2]
[336915503,1725241847655,-500.0,0.00025753,2]
[336915505,1725241847665,-500.0,0.00025753,2]
[336915507,1725241847676,-500.0,0.00025753,2]
[336915509,1725241847686,-500.0,0.00025753,2]
[336915511,1725241847696,-500.0,0.00025753,2]
[336915513,1725241847706,-1316.0,0.00025753,2]
[336915514,1725241847716,-500.0,0.00025753,2]
[336915516,1725241847726,-500.0,0.00025753,2]
[336915518,1725241847736,-500.0,0.00025753,2]
[336915520,1725241847749,-508.0090939,0.00025753,2]
[336915522,1725241847759,-663.31,0.00025753,2]
[336915524,1725241847768,-666.35,0.00025753,2]
[336915525,1725241847779,-500.0,0.00025753,2]
[336915527,1725241847790,-873.75,0.00025753,2]
[336915529,1725241847799,-500.0,0.00025753,2]
[336915531,1725241847809,-771.43,0.00025753,2]
[336915532,1725241847820,-775.24,0.00025753,2]
[336915534,1725241847830,-500.0,0.00025753,2]
[336915536,1725241847841,-500.0,0.00025753,2]
[336915538,1725241847850,-554.23,0.00025753,2]
[336915539,1725241847860,-357.49324299,0.00025753,2]
[336915541,1725241847869,-500.0,0.00025753,2]
[336915543,1725241847881,-500.0,0.00025753,2]
[336915545,1725241847892,-500.0,0.00025753,2]
[336915547,1725241847902,-500.0,0.00025753,2]
[336915549,1725241847913,-500.0,0.00025753,2]
[336915550,1725241847923,-500.0,0.00025753,2]
[336915552,1725241847934,-500.0,0.00025753,2]
[336915554,1725241847947,-500.0,0.00025753,2]
[336915556,1725241847958,-500.0,0.00025753,2]
[336915558,1725241847970,-507.08424322,0.00025753,2]
[336915560,1725241847980,-570.669813,0.00025753,7]
[336915562,1725241847989,-500.0,0.00025753,2]
[336915563,1725241847999,-809.88,0.00025753,2]
[336915565,1725241848009,-500.0,0.00025753,2]
[336915567,1725241848019,-570.669813,0.00025753,7]
[336915569,1725241848029,-2172.66,0.00025753,2]
[336915571,1725241848039,-500.0,0.00025753,2]
[336915573,1725241848049,-500.0,0.00025753,2]
[336915574,1725241848058,-500.0,0.00025753,2]
[336915576,1725241848069,-1751.19,0.00025753,2]
[336915578,1725241848079,-500.0,0.00025753,2]
[336915580,1725241848089,-490.90114801,0.00025753,2]
[336915582,1725241848099,-500.0,0.00025753,2]
[336915583,1725241848110,-898.37,0.00025753,2]
[336915585,1725241848120,-500.0,0.00025753,2]
[336915587,1725241848131,-2340.67,0.00025753,2]
[336915589,1725241848141,-500.0,0.00025753,2]
[336915591,1725241848153,-598.55,0.00025753,2]
[336915593,1725241848163,-630.16,0.00025753,2]
[336915595,1725241848173,-500.0,0.00025753,2]
[336915596,1725241848183,-500.0,0.00025753,2]
[336915598,1725241848194,-500.0,0.00025753,2]
[336915600,1725241848203,-500.0,0.00025753,2]
[336915603,1725241848223,-1293.18,0.00025753,2]
[336915605,1725241848234,-500.0,0.00025753,2]
[336915606,1725241848244,-500.0,0.00025753,2]
[336915608,1725241848257,-500.0,0.00025753,2]
[336915610,1725241848267,-3476.66,0.00025753,2]
[336915612,1725241848278,-496.45500936,0.00025753,2]
[336915614,1725241848289,-1516.91,0.00025753,2]
[336915616,1725241848299,-1634.96,0.00025753,2]
[336915618,1725241848309,-1875.06,0.00025753,2]
[336915620,1725241848320,-503.96917444,0.00025753,2]
[336915622,1725241848331,-509.91,0.00025753,2]
[336915623,1725241848342,-500.0,0.00025753,2]
[336915625,1725241848352,-662.86,0.00025753,2]
[336915627,1725241848363,-1453.83,0.00025753,2]
[336915629,1725241848373,-833.21,0.00025753,2]
[336915631,1725241848383,-1123.19,0.00025753,2]
[336915633,1725241848394,-971.65,0.00025753,2]
[336915635,1725241848404,-500.0,0.00025753,2]
[336915637,1725241848415,-500.0,0.00025753,2]
[336915638,1725241848425,-500.0,0.00025753,2]
[336915640,1725241848435,-2153.18,0.00025753,2]
[336915642,1725241848446,-500.0,0.00025753,2]
[336915644,1725241848457,-500.0,0.00025753,2]
[336915646,1725241848467,-1659.98,0.00025753,2]
[336915648,1725241848477,-1623.63,0.00025753,2]
[336915650,1725241848488,-2224.77,0.00025753,2]
[336915652,1725241848497,-1144.81,0.00025753,2]
[336915654,1725241848508,-700.92,0.00025753,2]
[336915656,1725241848518,-632.74,0.00025753,2]
[336915658,1725241848528,-1825.04,0.00025753,2]
[336915660,1725241848538,-208.34327963,0.00025753,2]
[336915662,1725241848548,-500.0,0.00025753,2]
[336915664,1725241848558,-514.74,0.00025753,2]
[336915666,1725241848568,-500.0,0.00025753,2]
[336915668,1725241848579,-554.09,0.00025753,2]
[336915670,1725241848590,-1198.03,0.00025753,2]
[336915671,1725241848600,-1509.68,0.00025753,2]
[336915672,1725241848612,-500.0,0.00025753,2]
[336915673,1725241848623,-500.0,0.00025753,2]
[336915674,1725241848633,-2597.51,0.00025753,2]
[336915675,1725241848648,-500.0,0.00025753,2]
[336915676,1725241848658,-500.0,0.00025753,2]
[336915677,1725241848669,-500.0,0.00025753,2]
[336915678,1725241848680,-708.92,0.00025753,2]
[336915679,1725241848691,-500.0,0.00025753,2]
[336915680,1725241848702,-667.2,0.00025753,2]
[336915681,1725241848712,-5040.89,0.00025753,2]
[336915682,1725241848723,-1599.44,0.00025753,2]
[336915683,1725241848734,-500.0,0.00025753,2]
[336915684,1725241848749,-714.24,0.00025753,2]
[336915685,1725241848761,-500.0,0.00025753,2]
[336915686,1725241848774,-1097.03,0.00025753,2]
[336915687,1725241848960,-1710.39,0.00025753,2]
[336915688,1725241848969,-853.23,0.00025753,2]
[336915690,1725241848979,-1479.22,0.00025753,2]
[336915691,1725241848988,-500.0,0.00025753,2]
[336915693,1725241848998,-151.0,0.00025753,7]
[336915694,1725241849008,-500.0,0.00025753,2]
[336915696,1725241849018,-1420.47,0.00025753,2]
[336915698,1725241849028,-1502.11,0.00025753,2]
[336915700,1725241849038,-500.0,0.00025753,2]
[336915702,1725241849052,-715.22,0.00025753,2]
[336915704,1725241849061,-500.0,0.00025753,2]
[336915706,1725241849072,-2171.28,0.00025753,2]
[336915708,1725241849082,-634.79847045,0.00025753,2]
[336915710,1725241849092,-500.0,0.00025753,2]
[336915712,1725241849102,-677.4,0.00025753,2]
[336915714,1725241849112,-987.53,0.00025753,2]
[336915716,1725241849121,-660.49,0.00025753,2]
[336915718,1725241849132,-1359.6,0.00025753,2]
[336915720,1725241849141,-500.0,0.00025753,2]
[336915723,1725241849152,-615.65,0.00025753,2]
[336915725,1725241849161,-505.89861142,0.00025753,2]
[336915727,1725241849171,-510.15,0.00025753,2]
[336915729,1725241849181,-500.0,0.00025753,2]
[336915731,1725241849191,-500.0,0.00025753,2]
[336915733,1725241849201,-500.0,0.00025753,2]
[336915735,1725241849211,-1469.24,0.00025753,2]
[336915737,1725241849221,-1368.38,0.00025753,2]
[336915739,1725241849231,-3682.87,0.00025753,2]
[336915741,1725241849240,-784.79,0.00025753,2]
[336915743,1725241849251,-640.79,0.00025753,2]
[336915745,1725241849260,-500.0,0.00025753,2]
[336915747,1725241849270,-504.28990011,0.00025753,2]
[336915749,1725241849280,-500.0,0.00025753,2]
[336915751,1725241849289,-1038.11,0.00025753,2]
[336915753,1725241849298,-1420.05,0.00025753,2]
[336915755,1725241849308,-1292.79,0.00025753,2]
[336915757,1725241849318,-1527.81,0.00025753,2]
[336915759,1725241849328,-2206.57,0.00025753,2]
[336915761,1725241849338,-500.0,0.00025753,2]
[336915763,1725241849347,-500.0,0.00025753,2]
[336915765,1725241849357,-559.58,0.00025753,2]
[336915767,1725241849367,-500.0,0.00025753,2]
[336915769,1725241849377,-540.95,0.00025753,2]
[336915771,1725241849387,-537.63537271,0.0002579,2]
[336915773,1725241849396,-151.0,0.00025857,3]
[336915775,1725241849406,-212.0,0.0002589,2]
[336915777,1725241849416,-276.51,0.00025927,7]
[336915779,1725241849426,-157.93840474,0.00025927,7]
[336915781,1725241849436,-157.93840474,0.00025927,7]
[336915783,1725241849447,-157.93840474,0.00025927,7]
[336915785,1725241849457,-157.93840474,0.00025927,7]
[336915787,1725241849466,-157.93840474,0.00025927,7]
[336915789,1725241849475,-278.5,0.00025927,7]
[336915791,1725241849485,-159.07607631,0.00025927,7]
[336915793,1725241849495,-159.07607631,0.00025927,7]
[336915795,1725241849505,-159.07607631,0.00025927,7]
[336915797,1725241849515,-159.07607631,0.00025927,7]
[336915799,1725241849525,-159.07607631,0.00025927,7]
[336915801,1725241849535,-194.445948,0.00025929,2]
[336915803,1725241849545,-153.0,0.00025966,2]
[336915805,1725241849554,-157.93840474,0.00025985,7]
[336915807,1725241849564,-159.07607631,0.00025985,7]
[336915809,1725241849574,-537.63537271,0.00025996,2]
[336915811,1725241849583,-500.0,0.00026,2]
[336915813,1725241849594,-14457.1860787,0.00026017,3]
[336915815,1725241849604,-1000.0,0.00026021,2]
[336915818,1725241849614,-151.0,0.00026023,3]
[336915820,1725241849624,-1173.41,0.00026026,2]
[336915822,1725241849633,-563.6,0.00026026,2]
[336915824,1725241849643,-8441.89,0.00026026,2]
[336915826,1725241849653,-1703.08,0.00026026,2]
[336915828,1725241849663,-1974.8,0.00026026,2]
[336915830,1725241849673,-3227.67,0.00026026,2]
[336915832,1725241849683,-1206.98,0.00026026,2]
[336915834,1725241849695,-1295.95,0.00026026,2]
[336915836,1725241849704,-525.12,0.00026026,2]
[336915838,1725241849714,-500.0,0.00026027,2]
[336915840,1725241849726,-504.30642844,0.00026027,2]
[336915842,1725241849735,-589.49,0.00026027,2]
[336915844,1725241849750,-426.55777024,0.00026027,2]
[336915846,1725241849759,-882.48,0.00026027,2]
[336915848,1725241849769,-500.0,0.00026027,2]
[336915850,1725241849779,-249.5624225,0.00026027,2]
[336915852,1725241849790,-396.36433586,0.00026027,2]
[336915854,1725241849800,-151.0,0.00026027,7]
[336915856,1725241849810,-151.0,0.00026027,7]
[336915858,1725241849820,-500.0,0.00026027,2]
[336915860,1725241849832,-500.0,0.00026027,2]
[336915862,1725241849843,-692.14,0.00026027,2]
[336915864,1725241849853,-500.0,0.00026027,2]
[336915866,1725241849863,-500.0,0.00026027,2]
[336915868,1725241849873,-500.0,0.00026027,2]
[336915870,1725241849883,-530.44398048,0.00026027,2]
[336915872,1725241849893,-1353.53,0.00026027,2]
[336915874,1725241849903,-690.61,0.00026027,2]
[336915876,1725241849912,-695.97,0.00026027,2]
[336915879,1725241849922,-500.0,0.00026027,2]
[336915881,1725241849941,-500.0,0.00026027,2]
[336915883,1725241849953,-505.7863791,0.00026027,2]
[336915886,1725241849963,-402.78772818,0.00026027,2]
[336915908,1725241850170,-188.50227182,0.00026027,2]
[336915910,1725241850179,-519.39,0.00026027,2]
[336915913,1725241850189,-502.22395216,0.00026027,2]
[336915915,1725241850199,-503.51962232,0.00026027,2]
[336915917,1725241850209,-500.0,0.00026027,2]
[336915919,1725241850219,-500.0,0.00026027,2]
[336915921,1725241850228,-557.59,0.00026027,2]
[336915923,1725241850238,-500.0,0.00026027,2]
[336915925,1725241850248,-500.0,0.00026027,2]
[336915927,1725241850258,-500.0,0.00026027,2]
[336915929,1725241850268,-500.0,0.00026027,2]
[336915931,1725241850277,-500.0,0.00026027,2]
[336915933,1725241850288,-500.0,0.00026027,2]
[336915935,1725241850299,-500.0,0.00026027,2]
[336915937,1725241850309,-1056.18,0.00026027,2]
[336915939,1725241850318,-588.42,0.00026027,2]
[336915941,1725241850328,-500.0,0.00026027,2]
[336915943,1725241850337,-500.0,0.00026027,2]
[336915945,1725241850346,-1495.45,0.00026027,2]
[336915947,1725241850355,-1096.0,0.00026027,2]
[336915949,1725241850365,-1000.0,0.00026027,7]
[336915951,1725241850374,-1000.0,0.00026027,7]
[336915953,1725241850385,-1000.0,0.00026027,7]
[336915955,1725241850395,-1000.0,0.00026027,7]
[336915957,1725241850404,-1000.0,0.00026027,7]
[336915959,1725241850414,-1000.0,0.00026027,7]
[336915961,1725241850423,-1000.0,0.00026027,7]
[336915963,1725241850432,-1000.0,0.00026027,7]
[336915965,1725241850441,-1000.0,0.00026027,7]
[336915967,1725241850452,-1000.0,0.00026027,7]
[336915969,1725241850461,-500.0,0.00026027,2]
[336915971,1725241850470,-814.05,0.00026027,2]
[336915973,1725241850479,-1000.0,0.00026027,7]
[336915976,1725241850493,-1000.0,0.00026027,7]
[336915978,1725241850503,-1000.0,0.00026027,7]
[336915980,1725241850513,-1000.0,0.00026027,7]
[336915982,1725241850523,-1000.0,0.00026027,7]
[336915984,1725241850532,-1000.0,0.00026027,7]
[336915986,1725241850541,-1000.0,0.00026027,7]
[336915988,1725241850551,-1000.0,0.00026027,7]
[336915990,1725241850562,-500.0,0.00026027,2]
[336915992,1725241850571,-1000.0,0.00026027,7]
[336915994,1725241850580,-1000.0,0.00026027,7]
[336915996,1725241850590,-1000.0,0.00026027,7]
[336915998,1725241850600,-1000.0,0.00026027,7]
[336916000,1725241850609,-1000.0,0.00026027,7]
[336916002,1725241850619,-1000.0,0.00026027,7]
[336916004,1725241850629,-1000.0,0.00026027,7]
[336916006,1725241850638,-1000.0,0.00026027,7]
[336916008,1725241850647,-853.48,0.00026027,2]
[336916011,1725241850657,-1000.0,0.00026027,7]
[336916013,1725241850666,-1000.0,0.00026027,7]
[336916014,1725241850675,-1000.0,0.00026027,7]
[336916016,1725241850684,-1000.0,0.00026027,7]
[336916019,1725241850694,-1000.0,0.00026027,7]
[336916021,1725241850704,-1000.0,0.00026027,7]
[336916023,1725241850713,-1261.97,0.00026027,2]
[336916025,1725241850724,-1000.0,0.00026027,7]
[336916027,1725241850734,-1000.0,0.00026027,7]
[336916029,1725241850744,-1000.0,0.00026027,7]
[336916031,1725241850755,-1000.0,0.00026027,7]
[336916033,1725241850764,-1000.0,0.00026027,7]
[336916035,1725241850773,-1000.0,0.00026027,7]
[336916036,1725241850783,-1000.0,0.00026027,7]
[336916038,1725241850793,-1000.0,0.00026027,7]
[336916040,1725241850802,-1000.0,0.00026027,7]
[336916042,1725241850812,-1000.0,0.00026027,7]
[336916044,1725241850824,-1000.0,0.00026027,7]
[336916046,1725241850834,-1000.0,0.00026027,7]
[336916048,1725241850844,-1000.0,0.00026027,7]
[336916050,1725241850854,-1000.0,0.00026027,7]
[336916052,1725241850865,-1000.0,0.00026027,7]
[336916054,1725241850876,-1000.0,0.00026027,7]
[336916056,1725241850885,-1000.0,0.00026027,7]
[336916058,1725241850895,-1000.0,0.00026027,7]
[336916060,1725241850904,-1000.0,0.00026027,7]
[336916062,1725241850914,-1000.0,0.00026027,7]
[336916064,1725241850924,-1000.0,0.00026027,7]
[336916066,1725241850933,-425.780318,0.00026027,7]
[336916069,1725241850948,-500.0,0.00026027,2]
[336916071,1725241850957,-13.93192264,0.00026027,2]
[336916757,1725241857950,-1298.97807736,0.00026027,2]
[336916759,1725241857960,-500.0,0.00026027,2]
[336916761,1725241857969,-1049.4,0.00026027,2]
[336916763,1725241857978,-751.59,0.00026027,2]
[336916765,1725241857988,-888.46,0.00026027,2]
[336916767,1725241857997,-956.79,0.00026027,2]
[336916769,1725241858007,-505.0686083,0.00026027,2]
[336916771,1725241858017,-327.86573895,0.00026027,2]
[336916773,1725241858027,-500.0,0.00026027,2]
[336916775,1725241858036,-567.63,0.00026027,2]
[336916777,1725241858046,-500.0,0.00026027,2]
[336916779,1725241858055,-500.0,0.00026027,2]
[336916781,1725241858064,-500.0,0.00026027,2]
[336916783,1725241858074,-500.0,0.00026027,2]
[336916785,1725241858084,-500.0,0.00026027,2]
[336916787,1725241858093,-500.0,0.00026027,2]
[336916789,1725241858103,-4058.39,0.00026027,2]
[336916791,1725241858112,-500.0,0.00026027,2]
[336916793,1725241858122,-734.36,0.00026027,2]
[336916795,1725241858131,-500.0,0.00026027,2]
[336916797,1725241858141,-500.0,0.00026027,2]
[336916799,1725241858151,-500.0,0.00026027,2]
[336916801,1725241858160,-500.0,0.00026027,2]
[336916803,1725241858170,-500.0,0.00026027,2]
[336916805,1725241858180,-500.0,0.00026027,2]
[336916807,1725241858189,-500.0,0.00026027,2]
[336916809,1725241858199,-500.0,0.00026027,2]
[336916811,1725241858208,-1316.0,0.00026027,2]
[336916813,1725241858217,-500.0,0.00026027,2]
[336916815,1725241858227,-500.0,0.00026027,2]
[336916817,1725241858236,-506.56652084,0.00026027,2]
[336916819,1725241858246,-663.31,0.00026027,2]
[336916821,1725241858255,-666.35,0.00026027,2]
[336916823,1725241858265,-500.0,0.00026027,2]
[336916825,1725241858275,-873.75,0.00026027,2]
[336916827,1725241858285,-500.0,0.00026027,2]
[336916829,1725241858294,-771.43,0.00026027,2]
[336916831,1725241858304,-775.24,0.00026027,2]
[336916833,1725241858313,-500.0,0.00026027,2]
[336916835,1725241858323,-478.0514398,0.00026027,2]
[336916837,1725241858332,-554.23,0.00026027,2]
[336916838,1725241858341,-500.0,0.00026027,2]
[336916840,1725241858350,-500.0,0.00026027,2]
[336916842,1725241858359,-500.0,0.00026027,2]
[336916844,1725241858369,-500.0,0.00026027,2]
[336916846,1725241858379,-500.0,0.00026027,2]
[336916848,1725241858388,-500.0,0.00026027,2]
[336916850,1725241858398,-500.0,0.00026027,2]
[336916852,1725241858407,-500.0,0.00026027,2]
[336916854,1725241858417,-500.0,0.00026027,2]
[336916856,1725241858426,-570.669813,0.00026027,7]
[336916858,1725241858436,-570.669813,0.00026027,7]
[336916860,1725241858445,-500.0,0.00026027,2]
[336916862,1725241858455,-809.88,0.00026027,2]
[336916864,1725241858468,-500.0,0.00026027,2]
[336916866,1725241858478,-570.669813,0.00026027,7]
[336916868,1725241858487,-570.669813,0.00026027,7]
[336916870,1725241858496,-2172.66,0.00026027,2]
[336916872,1725241858505,-500.0,0.00026027,2]
[336916874,1725241858514,-500.0,0.00026027,2]
[336916875,1725241858524,-500.0,0.00026027,2]
[336916877,1725241858534,-1751.19,0.00026027,2]
[336916879,1725241858544,-500.0,0.00026027,2]
[336916881,1725241858553,-500.0,0.00026027,2]
[336916883,1725241858562,-898.37,0.00026027,2]
[336916885,1725241858572,-500.0,0.00026027,2]
[336916887,1725241858581,-2340.67,0.00026027,2]
[336916889,1725241858590,-500.0,0.00026027,2]
[336916891,1725241858600,-598.55,0.00026027,2]
[336916893,1725241858609,-630.16,0.00026027,2]
[336916895,1725241858618,-500.0,0.00026027,2]
[336916897,1725241858628,-500.0,0.00026027,2]
[336916899,1725241858636,-500.0,0.00026027,2]
[336916901,1725241858646,-500.0,0.00026027,2]
[336916903,1725241858655,-1293.18,0.00026027,2]
[336916905,1725241858665,-500.0,0.00026027,2]
[336916919,1725241858803,-500.0,0.00026027,2]
[336916921,1725241858813,-500.0,0.00026027,2]
[336916923,1725241858824,-3476.66,0.00026027,2]
[336916925,1725241858833,-1516.91,0.00026027,2]
[336916927,1725241858842,-1634.96,0.00026027,2]
[336916928,1725241858851,-1875.06,0.00026027,2]
[336916931,1725241858862,-500.0,0.00026027,2]
[336916933,1725241858871,-662.86,0.00026027,2]
[336916934,1725241858880,-1453.83,0.00026027,2]
[336916936,1725241858890,-833.21,0.00026027,2]
[336916939,1725241858901,-1123.19,0.00026027,2]
[336916941,1725241858911,-971.65,0.00026027,2]
[336916943,1725241858921,-500.0,0.00026027,2]
[336916944,1725241858930,-500.0,0.00026027,2]
[336916946,1725241858939,-500.0,0.00026027,2]
[336916948,1725241858949,-2153.18,0.00026027,2]
[336916950,1725241858958,-500.0,0.00026027,2]
[336916952,1725241858967,-500.0,0.00026027,2]
[336916954,1725241858976,-438.2246881,0.00026027,2]
[336916975,1725241859166,-1152.00187,0.00026027,2]
[336917250,1725241862166,-69.7534419,0.00026027,2]
[336917252,1725241862176,-1623.63,0.00026027,2]
[336917254,1725241862186,-2224.77,0.00026027,2]
[336917256,1725241862196,-1144.81,0.00026027,2]
[336917258,1725241862207,-700.92,0.00026027,2]
[336917260,1725241862216,-632.74,0.00026027,2]
[336917262,1725241862226,-1825.04,0.00026027,2]
[336917264,1725241862235,-613.44929059,0.00026027,2]
[336917266,1725241862244,-514.74,0.00026027,2]
[336917269,1725241862254,-500.0,0.00026027,2]
[336917271,1725241862264,-554.09,0.00026027,2]
[336917273,1725241862274,-1198.03,0.00026027,2]
[336917275,1725241862283,-1509.68,0.00026027,2]
[336917277,1725241862292,-500.0,0.00026027,2]
[336917279,1725241862301,-225.31405573,0.00026027,2]
[336917281,1725241862311,-2597.51,0.00026027,2]
[336917283,1725241862320,-500.0,0.00026027,2]
[336917285,1725241862330,-500.0,0.00026027,2]
[336917287,1725241862339,-500.0,0.00026027,2]
[336917289,1725241862349,-708.92,0.00026027,2]
[336917291,1725241862358,-500.0,0.00026027,2]
[336917293,1725241862368,-667.2,0.00026027,2]
[336917295,1725241862377,-2248.86717978,0.00026027,2]